[Event "January 9 Late 2024"]
[Site "https://www.chess.com"]
[Date "2024.01.09"]
[Round "2"]
[White "Keuchel, Destynn"]
[Black "Toktomushev, Teimur"]
[Result "1-0"]
[Board "234"]
[TimeControl "180+1"]
[WhiteFideId "30923018"]
[BlackFideId "14176726"]
[WhiteElo "2058"]
[BlackElo "2457"]
[WhiteTeam "USA"]
[BlackTeam "UKR"]
[WhiteClock "0:01:14"]
[BlackClock "0:00:04"]

1. e4 {[%clk 0:03:00]}  c5 {[%clk 0:02:49]} 2. c3 {[%clk 0:03:00]}  d5 {[%clk 0:02:49]} 3. exd5 {[%clk 0:03:00]}  Qxd5 {[%clk 0:02:50]} 4. Na3 {[%clk 0:03:00]}  Nf6 {[%clk 0:02:35]} 5. Nf3 {[%clk 0:02:59]}  e6 {[%clk 0:02:33]} 6. Bc4 {[%clk 0:02:56]}  Qd8 {[%clk 0:02:23]} 7. O-O {[%clk 0:02:54]}  a6 {[%clk 0:02:19]} 8. Nc2 {[%clk 0:02:51]}  b5 {[%clk 0:02:17]} 9. Be2 {[%clk 0:02:52]}  Bb7 {[%clk 0:02:01]} 10. d4 {[%clk 0:02:52]}  Nc6 {[%clk 0:01:53]} 11. Bg5 {[%clk 0:02:48]}  h6 {[%clk 0:01:49]} 12. Bh4 {[%clk 0:02:43]}  Be7 {[%clk 0:01:36]} 13. dxc5 {[%clk 0:02:40]}  Bxc5 {[%clk 0:01:34]} 14. Qxd8+ {[%clk 0:02:37]}  Rxd8 {[%clk 0:01:34]} 15. Rad1 {[%clk 0:02:37]}  g5 {[%clk 0:01:30]} 16. Bg3 {[%clk 0:02:36]}  Ne4 {[%clk 0:01:22]} 17. Rfe1 {[%clk 0:02:17]}  O-O {[%clk 0:00:45]} 18. Bd3 {[%clk 0:02:06]}  Nxg3 {[%clk 0:00:28]} 19. hxg3 {[%clk 0:02:07]}  Kg7 {[%clk 0:00:20]} 20. Be4 {[%clk 0:02:07]}  Bb6 {[%clk 0:00:08]} 21. Nb4 {[%clk 0:01:55]}  Nxb4 {[%clk 0:00:06]} 22. Bxb7 {[%clk 0:01:56]}  Nd5 {[%clk 0:00:02]} 23. Bxd5 {[%clk 0:01:53]}  exd5 {[%clk 0:00:02]} 24. Ne5 {[%clk 0:01:44]}  Rd6 {[%clk 0:00:02]} 25. Nf3 {[%clk 0:01:42]}  Rfd8 {[%clk 0:00:02]} 26. Nd4 {[%clk 0:01:42]}  Bxd4 {[%clk 0:00:02]} 27. Rxd4 {[%clk 0:01:43]}  Re6 {[%clk 0:00:02]} 28. Red1 {[%clk 0:01:42]}  a5 {[%clk 0:00:03]} 29. Kf1 {[%clk 0:01:39]}  a4 {[%clk 0:00:02]} 30. Rxd5 {[%clk 0:01:40]}  Rb8 {[%clk 0:00:02]} 31. a3 {[%clk 0:01:36]}  Rc6 {[%clk 0:00:01]} 32. Re5 {[%clk 0:01:30]}  Rcb6 {[%clk 0:00:02]} 33. Rdd5 {[%clk 0:01:28]}  Kf6 {[%clk 0:00:03]} 34. f4 {[%clk 0:01:24]}  gxf4 {[%clk 0:00:02]} 35. gxf4 {[%clk 0:01:25]}  Kg6 {[%clk 0:00:03]} 36. Re7 {[%clk 0:01:23]}  Re6 {[%clk 0:00:01]} 37. Rxe6+ {[%clk 0:01:20]}  fxe6 {[%clk 0:00:02]} 38. Re5 {[%clk 0:01:20]}  Kf6 {[%clk 0:00:03]} 39. Ke2 {[%clk 0:01:19]}  Rg8 {[%clk 0:00:03]} 40. Kf3 {[%clk 0:01:19]}  Rb8 {[%clk 0:00:02]} 41. g4 {[%clk 0:01:18]}  Rb6 {[%clk 0:00:02]} 42. Ke4 {[%clk 0:01:17]}  Rb7 {[%clk 0:00:02]} 43. Kd4 {[%clk 0:01:14]}  Rg7 {[%clk 0:00:01]} 44. g5+ {[%clk 0:01:08]}  hxg5 {[%clk 0:00:02]} 45. fxg5+ {[%clk 0:01:08]}  Rxg5 {[%clk 0:00:01]} 46. Rxg5 {[%clk 0:01:08]}  Kxg5 {[%clk 0:00:02]} 47. Ke5 {[%clk 0:01:09]}  Kg4 {[%clk 0:00:02]} 48. Kxe6 {[%clk 0:01:10]}  Kf4 {[%clk 0:00:03]} 49. Kd5 {[%clk 0:01:10]}  Ke3 {[%clk 0:00:03]} 50. Kc5 {[%clk 0:01:11]}  Kd3 {[%clk 0:00:04]} 51. Kxb5 {[%clk 0:01:12]}  Kc2 {[%clk 0:00:05]} 52. Kb4 {[%clk 0:01:11]}  Kxb2 {[%clk 0:00:06]} 53. c4 {[%clk 0:01:12]}  Ka2 {[%clk 0:00:06]} 54. c5 {[%clk 0:01:13]}  Kb2 {[%clk 0:00:04]} 55. c6 {[%clk 0:01:14]} 1-0

[Event "January 9 Late 2024"]
[Site "https://www.chess.com"]
[Date "2024.01.09"]
[Round "2"]
[White "Gomes, Luiz Alexandre de Souza"]
[Black "Panico, Nick"]
[Result "1/2-1/2"]
[Board "235"]
[TimeControl "180+1"]
[WhiteFideId "2102790"]
[BlackFideId "2026724"]
[WhiteElo "2453"]
[BlackElo "2034"]
[WhiteTeam "BRA"]
[BlackTeam "USA"]
[WhiteClock "0:01:36"]
[BlackClock "0:00:37"]

1. e4 {[%clk 0:03:00]}  e6 {[%clk 0:02:59]} 2. d3 {[%clk 0:03:00]}  d5 {[%clk 0:02:59]} 3. Nd2 {[%clk 0:03:01]}  g6 {[%clk 0:02:56]} 4. Ngf3 {[%clk 0:03:02]}  Bg7 {[%clk 0:02:56]} 5. c3 {[%clk 0:03:02]}  Ne7 {[%clk 0:02:56]} 6. g3 {[%clk 0:03:03]}  O-O {[%clk 0:02:57]} 7. Bg2 {[%clk 0:03:03]}  c5 {[%clk 0:02:57]} 8. O-O {[%clk 0:03:03]}  Nbc6 {[%clk 0:02:57]} 9. Qc2 {[%clk 0:03:04]}  b6 {[%clk 0:02:55]} 10. Re1 {[%clk 0:03:04]}  a5 {[%clk 0:02:39]} 11. Nf1 {[%clk 0:03:04]}  Ba6 {[%clk 0:02:27]} 12. h4 {[%clk 0:03:02]}  dxe4 {[%clk 0:02:24]} 13. dxe4 {[%clk 0:03:03]}  Qd3 {[%clk 0:02:23]} 14. Qxd3 {[%clk 0:03:00]}  Bxd3 {[%clk 0:02:24]} 15. Bf4 {[%clk 0:02:44]}  e5 {[%clk 0:02:11]} 16. Bd2 {[%clk 0:02:41]}  Rfd8 {[%clk 0:02:04]} 17. Bg5 {[%clk 0:02:31]}  h6 {[%clk 0:02:00]} 18. Bxe7 {[%clk 0:02:28]}  Nxe7 {[%clk 0:02:01]} 19. N3d2 {[%clk 0:02:27]}  h5 {[%clk 0:01:31]} 20. Ne3 {[%clk 0:02:26]}  Bh6 {[%clk 0:01:29]} 21. Ndc4 {[%clk 0:02:26]}  Bxe3 {[%clk 0:01:20]} 22. Nxe3 {[%clk 0:02:27]}  c4 {[%clk 0:01:09]} 23. b3 {[%clk 0:02:24]}  b5 {[%clk 0:01:09]} 24. bxc4 {[%clk 0:02:23]}  bxc4 {[%clk 0:01:10]} 25. Nd5 {[%clk 0:02:17]}  Nxd5 {[%clk 0:01:04]} 26. exd5 {[%clk 0:02:18]}  f6 {[%clk 0:01:04]} 27. f4 {[%clk 0:02:17]}  e4 {[%clk 0:00:59]} 28. Bxe4 {[%clk 0:02:14]}  Bxe4 {[%clk 0:00:59]} 29. Rxe4 {[%clk 0:02:15]}  Rxd5 {[%clk 0:01:00]} 30. Rxc4 {[%clk 0:02:15]}  Rd3 {[%clk 0:01:00]} 31. Kg2 {[%clk 0:02:14]}  Re8 {[%clk 0:00:56]} 32. Rf1 {[%clk 0:02:13]}  Re2+ {[%clk 0:00:52]} 33. Rf2 {[%clk 0:02:13]}  Rdd2 {[%clk 0:00:52]} 34. Rxe2 {[%clk 0:02:13]}  Rxe2+ {[%clk 0:00:53]} 35. Kf3 {[%clk 0:02:14]}  Rxa2 {[%clk 0:00:54]} 36. Rc7 {[%clk 0:02:12]}  a4 {[%clk 0:00:53]} 37. Ra7 {[%clk 0:02:12]}  Rc2 {[%clk 0:00:51]} 38. Rxa4 {[%clk 0:02:06]}  Rxc3+ {[%clk 0:00:49]} 39. Kg2 {[%clk 0:02:07]}  Rc7 {[%clk 0:00:49]} 40. Ra6 {[%clk 0:02:04]}  Kg7 {[%clk 0:00:49]} 41. Rd6 {[%clk 0:02:02]}  Kf7 {[%clk 0:00:49]} 42. Ra6 {[%clk 0:02:02]}  Re7 {[%clk 0:00:50]} 43. Kf3 {[%clk 0:02:01]}  Kg7 {[%clk 0:00:50]} 44. f5 {[%clk 0:01:59]}  Re5 {[%clk 0:00:44]} 45. fxg6 {[%clk 0:01:59]}  Kxg6 {[%clk 0:00:43]} 46. Ra8 {[%clk 0:01:57]}  Rc5 {[%clk 0:00:43]} 47. Rg8+ {[%clk 0:01:56]}  Kh6 {[%clk 0:00:41]} 48. Kf4 {[%clk 0:01:53]}  Kh7 {[%clk 0:00:40]} 49. Ra8 {[%clk 0:01:51]}  Kg6 {[%clk 0:00:40]} 50. Ra4 {[%clk 0:01:49]}  Rb5 {[%clk 0:00:40]} 51. Rc4 {[%clk 0:01:49]}  Rf5+ {[%clk 0:00:39]} 52. Ke3 {[%clk 0:01:48]}  Ra5 {[%clk 0:00:39]} 53. Kf3 {[%clk 0:01:47]}  Ra3+ {[%clk 0:00:38]} 54. Kg2 {[%clk 0:01:47]}  Ra2+ {[%clk 0:00:38]} 55. Kh3 {[%clk 0:01:47]}  Ra3 {[%clk 0:00:38]} 56. Rc8 {[%clk 0:01:47]}  Kg7 {[%clk 0:00:37]} 57. Rc5 {[%clk 0:01:45]}  Kg6 {[%clk 0:00:37]} 58. Rb5 {[%clk 0:01:45]}  Rc3 {[%clk 0:00:36]} 59. Rd5 {[%clk 0:01:45]}  Kg7 {[%clk 0:00:36]} 60. Rxh5 {[%clk 0:01:44]}  Kg6 {[%clk 0:00:37]} 61. Rb5 {[%clk 0:01:44]}  Ra3 {[%clk 0:00:36]} 62. Kg4 {[%clk 0:01:43]}  Ra4+ {[%clk 0:00:36]} 63. Kf3 {[%clk 0:01:43]}  Ra3+ {[%clk 0:00:36]} 64. Kg2 {[%clk 0:01:43]}  Ra2+ {[%clk 0:00:36]} 65. Kh3 {[%clk 0:01:44]}  Ra3 {[%clk 0:00:37]} 66. Rb8 {[%clk 0:01:41]}  Kg7 {[%clk 0:00:37]} 67. Rb5 {[%clk 0:01:36]}  Kg6 {[%clk 0:00:37]} 1/2-1/2

[Event "January 9 Late 2024"]
[Site "https://www.chess.com"]
[Date "2024.01.09"]
[Round "2"]
[White "Reinecke, Katharina"]
[Black "Morales Garcia, Sergio Joshafatt"]
[Result "0-1"]
[Board "237"]
[TimeControl "180+1"]
[WhiteFideId "12929727"]
[BlackFideId "5106249"]
[WhiteElo "2025"]
[BlackElo "2453"]
[WhiteTeam "GER"]
[BlackTeam "MEX"]
[WhiteClock "0:00:34"]
[BlackClock "0:01:02"]

1. d4 {[%clk 0:03:00]}  d5 {[%clk 0:02:59]} 2. c4 {[%clk 0:03:00]}  c6 {[%clk 0:03:00]} 3. Nf3 {[%clk 0:03:00]}  Nf6 {[%clk 0:03:00]} 4. g3 {[%clk 0:03:00]}  Bf5 {[%clk 0:03:00]} 5. Bg2 {[%clk 0:02:59]}  e6 {[%clk 0:03:00]} 6. O-O {[%clk 0:02:59]}  h6 {[%clk 0:03:00]} 7. Nc3 {[%clk 0:02:58]}  Nbd7 {[%clk 0:03:00]} 8. b3 {[%clk 0:02:57]}  Be7 {[%clk 0:02:58]} 9. Bb2 {[%clk 0:02:57]}  O-O {[%clk 0:02:58]} 10. Nd2 {[%clk 0:02:57]}  Qc7 {[%clk 0:02:42]} 11. e4 {[%clk 0:02:55]}  dxe4 {[%clk 0:02:42]} 12. Ndxe4 {[%clk 0:02:53]}  Rad8 {[%clk 0:02:41]} 13. Qe2 {[%clk 0:02:48]}  c5 {[%clk 0:02:31]} 14. dxc5 {[%clk 0:02:42]}  Nxc5 {[%clk 0:02:29]} 15. Nxc5 {[%clk 0:02:38]}  Bxc5 {[%clk 0:02:27]} 16. Nb5 {[%clk 0:02:35]}  Qe7 {[%clk 0:02:27]} 17. Bxf6 {[%clk 0:02:29]}  Qxf6 {[%clk 0:02:26]} 18. Bxb7 {[%clk 0:02:29]}  Bd3 {[%clk 0:02:24]} 19. Qg4 {[%clk 0:02:09]}  Bxf1 {[%clk 0:02:23]} 20. Rxf1 {[%clk 0:02:08]}  Rd2 {[%clk 0:02:23]} 21. Qf4 {[%clk 0:01:43]}  Qxf4 {[%clk 0:02:20]} 22. gxf4 {[%clk 0:01:43]}  Rxa2 {[%clk 0:02:19]} 23. Kg2 {[%clk 0:01:39]}  Rd8 {[%clk 0:02:17]} 24. Kg3 {[%clk 0:01:37]}  Rd3+ {[%clk 0:02:15]} 25. f3 {[%clk 0:01:33]}  Rxb3 {[%clk 0:02:12]} 26. Rd1 {[%clk 0:01:30]}  g6 {[%clk 0:02:10]} 27. Bc6 {[%clk 0:01:25]}  Rbb2 {[%clk 0:02:08]} 28. f5 {[%clk 0:01:20]}  g5 {[%clk 0:01:55]} 29. Rh1 {[%clk 0:01:08]}  Rg2+ {[%clk 0:01:50]} 30. Kh3 {[%clk 0:01:06]}  exf5 {[%clk 0:01:49]} 31. Bd7 {[%clk 0:01:01]}  a6 {[%clk 0:01:19]} 32. Nc3 {[%clk 0:00:57]}  Rac2 {[%clk 0:01:18]} 33. Nd5 {[%clk 0:00:57]}  Bd6 {[%clk 0:01:18]} 34. Bxf5 {[%clk 0:00:54]}  Rxh2+ {[%clk 0:01:17]} 35. Rxh2 {[%clk 0:00:54]}  Rxh2+ {[%clk 0:01:18]} 36. Kg4 {[%clk 0:00:54]}  Kg7 {[%clk 0:01:16]} 37. Bd3 {[%clk 0:00:47]}  a5 {[%clk 0:01:13]} 38. Nb6 {[%clk 0:00:44]}  Kf6 {[%clk 0:01:05]} 39. Na4 {[%clk 0:00:44]}  Ke5 {[%clk 0:01:05]} 40. c5 {[%clk 0:00:42]}  Bc7 {[%clk 0:01:02]} 41. Bf5 {[%clk 0:00:39]}  Rh4+ {[%clk 0:01:01]} 42. Kg3 {[%clk 0:00:34]}  Kxf5+ {[%clk 0:01:02]} 0-1

[Event "January 9 Late 2024"]
[Site "https://www.chess.com"]
[Date "2024.01.09"]
[Round "2"]
[White "Joie, Sebastien"]
[Black "Winkels, Marcel"]
[Result "1-0"]
[Board "240"]
[TimeControl "180+1"]
[WhiteFideId "650420"]
[BlackFideId "1003887"]
[WhiteElo "2449"]
[BlackElo "2002"]
[WhiteTeam "FRA"]
[BlackTeam "NED"]
[WhiteClock "0:01:51"]
[BlackClock "0:00:25"]

1. d4 {[%clk 0:03:00]}  Nf6 {[%clk 0:02:58]} 2. c4 {[%clk 0:03:01]}  e5 {[%clk 0:02:58]} 3. dxe5 {[%clk 0:03:01]}  Ng4 {[%clk 0:02:55]} 4. Nf3 {[%clk 0:03:01]}  Bc5 {[%clk 0:02:55]} 5. e3 {[%clk 0:03:00]}  Nc6 {[%clk 0:02:54]} 6. a3 {[%clk 0:03:01]}  a5 {[%clk 0:02:52]} 7. b3 {[%clk 0:03:02]}  Ngxe5 {[%clk 0:02:45]} 8. Bb2 {[%clk 0:03:02]}  d6 {[%clk 0:02:32]} 9. Nc3 {[%clk 0:03:00]}  Qe7 {[%clk 0:02:22]} 10. Be2 {[%clk 0:02:44]}  Be6 {[%clk 0:02:10]} 11. O-O {[%clk 0:02:41]}  O-O-O {[%clk 0:02:02]} 12. Nd5 {[%clk 0:02:28]}  Bxd5 {[%clk 0:01:54]} 13. cxd5 {[%clk 0:02:28]}  Nb8 {[%clk 0:01:51]} 14. b4 {[%clk 0:02:15]}  Bb6 {[%clk 0:01:48]} 15. bxa5 {[%clk 0:01:59]}  Bxa5 {[%clk 0:01:45]} 16. Qa4 {[%clk 0:01:59]}  Nxf3+ {[%clk 0:01:20]} 17. Bxf3 {[%clk 0:01:54]}  Bb6 {[%clk 0:01:19]} 18. Bg4+ {[%clk 0:01:53]}  Rd7 {[%clk 0:00:34]} 19. Rac1 {[%clk 0:01:52]}  g6 {[%clk 0:00:32]} 20. Bxd7+ {[%clk 0:01:50]}  Nxd7 {[%clk 0:00:25]} 21. Bxh8 {[%clk 0:01:51]} 1-0

[Event "January 9 Late 2024"]
[Site "https://www.chess.com"]
[Date "2024.01.09"]
[Round "2"]
[White "Smirnov, Timofey"]
[Black "Bold, Andre"]
[Result "0-1"]
[Board "242"]
[TimeControl "180+1"]
[WhiteFideId "24176427"]
[BlackFideId "16208471"]
[WhiteElo "1991"]
[BlackElo "2448"]
[WhiteTeam "RUS"]
[BlackTeam "GER"]
[WhiteClock "0:00:00"]
[BlackClock "0:00:18"]

1. e4 {[%clk 0:03:00]}  c6 {[%clk 0:02:59]} 2. d4 {[%clk 0:03:00]}  d5 {[%clk 0:03:00]} 3. exd5 {[%clk 0:03:00]}  cxd5 {[%clk 0:03:01]} 4. c4 {[%clk 0:03:01]}  Nf6 {[%clk 0:03:01]} 5. Nc3 {[%clk 0:03:00]}  e6 {[%clk 0:03:01]} 6. Nf3 {[%clk 0:03:00]}  Bb4 {[%clk 0:03:00]} 7. c5 {[%clk 0:02:57]}  O-O {[%clk 0:02:58]} 8. Bd3 {[%clk 0:02:47]}  Ne4 {[%clk 0:02:35]} 9. Bd2 {[%clk 0:02:40]}  Nxd2 {[%clk 0:02:33]} 10. Qxd2 {[%clk 0:02:40]}  h6 {[%clk 0:02:31]} 11. O-O {[%clk 0:02:39]}  b6 {[%clk 0:02:30]} 12. a3 {[%clk 0:02:30]}  Bxc3 {[%clk 0:02:28]} 13. Qxc3 {[%clk 0:02:29]}  bxc5 {[%clk 0:02:22]} 14. Qxc5 {[%clk 0:02:25]}  Ba6 {[%clk 0:02:13]} 15. Bxa6 {[%clk 0:02:19]}  Nxa6 {[%clk 0:02:14]} 16. Qc3 {[%clk 0:02:09]}  Nc7 {[%clk 0:02:05]} 17. Rfc1 {[%clk 0:01:55]}  Ne8 {[%clk 0:02:05]} 18. Ne5 {[%clk 0:01:52]}  Nd6 {[%clk 0:02:03]} 19. b4 {[%clk 0:01:40]}  Rc8 {[%clk 0:01:35]} 20. Qd3 {[%clk 0:01:39]}  Qe7 {[%clk 0:01:29]} 21. Rc5 {[%clk 0:01:30]}  Ne4 {[%clk 0:01:24]} 22. Rxc8 {[%clk 0:01:23]}  Rxc8 {[%clk 0:01:25]} 23. f3 {[%clk 0:01:22]}  Nd6 {[%clk 0:01:20]} 24. b5 {[%clk 0:01:05]}  Qc7 {[%clk 0:01:14]} 25. Nc6 {[%clk 0:00:59]}  Nxb5 {[%clk 0:01:08]} 26. Rc1 {[%clk 0:00:41]}  Nd6 {[%clk 0:01:08]} 27. Qa6 {[%clk 0:00:29]}  Kh8 {[%clk 0:00:58]} 28. Rc5 {[%clk 0:00:29]}  Qb6 {[%clk 0:00:49]} 29. Ra5 {[%clk 0:00:16]}  Rxc6 {[%clk 0:00:35]} 30. Qxa7 {[%clk 0:00:14]}  Qxa7 {[%clk 0:00:29]} 31. Rxa7 {[%clk 0:00:15]}  Rc4 {[%clk 0:00:23]} 32. a4 {[%clk 0:00:11]}  Rxd4 {[%clk 0:00:23]} 33. a5 {[%clk 0:00:11]}  Kh7 {[%clk 0:00:22]} 34. Rd7 {[%clk 0:00:09]}  Nc4 {[%clk 0:00:20]} 35. a6 {[%clk 0:00:09]}  Rd1+ {[%clk 0:00:21]} 36. Kf2 {[%clk 0:00:09]}  Ra1 {[%clk 0:00:21]} 37. a7 {[%clk 0:00:08]}  Kg6 {[%clk 0:00:22]} 38. Ke2 {[%clk 0:00:06]}  Ra3 {[%clk 0:00:18]} 39. Rc7 {[%clk 0:00:06]}  Kf6 {[%clk 0:00:18]} 40. Kd1 {[%clk 0:00:03]}  Nd6 {[%clk 0:00:18]} 41. Kc2 {[%clk 0:00:03]}  Nb5 {[%clk 0:00:18]} 42. Rc8 {[%clk 0:00:01]}  Rxa7 {[%clk 0:00:17]} 43. Rb8 {[%clk 0:00:00]}  Rc7+ {[%clk 0:00:18]} 0-1

[Event "January 9 Late 2024"]
[Site "https://www.chess.com"]
[Date "2024.01.09"]
[Round "2"]
[White "Boraso, Alessio"]
[Black "Burke, Paul"]
[Result "1-0"]
[Board "243"]
[TimeControl "180+1"]
[WhiteFideId "848077"]
[BlackFideId "2605767"]
[WhiteElo "2448"]
[BlackElo "1886"]
[WhiteTeam "ITA"]
[BlackTeam "CAN"]
[WhiteClock "0:01:17"]
[BlackClock "0:00:00"]

1. Nf3 {[%clk 0:03:00]}  a6 {[%clk 0:02:59]} 2. g3 {[%clk 0:03:01]}  d6 {[%clk 0:02:58]} 3. Bg2 {[%clk 0:03:02]}  g6 {[%clk 0:02:59]} 4. O-O {[%clk 0:03:02]}  Bg7 {[%clk 0:02:59]} 5. d4 {[%clk 0:03:02]}  Nd7 {[%clk 0:02:59]} 6. e4 {[%clk 0:03:03]}  h6 {[%clk 0:03:00]} 7. Nc3 {[%clk 0:03:03]}  e6 {[%clk 0:03:00]} 8. Re1 {[%clk 0:03:03]}  Ne7 {[%clk 0:03:01]} 9. a4 {[%clk 0:03:03]}  O-O {[%clk 0:03:01]} 10. a5 {[%clk 0:03:04]}  c5 {[%clk 0:02:53]} 11. h4 {[%clk 0:03:04]}  cxd4 {[%clk 0:02:52]} 12. Nxd4 {[%clk 0:03:05]}  Nc5 {[%clk 0:02:40]} 13. b4 {[%clk 0:03:04]}  Nd7 {[%clk 0:02:34]} 14. Be3 {[%clk 0:03:05]}  Nc6 {[%clk 0:02:31]} 15. Rb1 {[%clk 0:03:03]}  Nxd4 {[%clk 0:02:15]} 16. Bxd4 {[%clk 0:03:03]}  e5 {[%clk 0:02:15]} 17. Be3 {[%clk 0:03:02]}  Nf6 {[%clk 0:02:13]} 18. Nd5 {[%clk 0:02:58]}  Nxd5 {[%clk 0:02:11]} 19. Qxd5 {[%clk 0:02:59]}  Be6 {[%clk 0:02:10]} 20. Qd3 {[%clk 0:02:59]}  Qd7 {[%clk 0:01:45]} 21. Red1 {[%clk 0:02:59]}  d5 {[%clk 0:01:38]} 22. exd5 {[%clk 0:02:57]}  Bh3 {[%clk 0:01:38]} 23. c4 {[%clk 0:02:55]}  Bxg2 {[%clk 0:01:36]} 24. Kxg2 {[%clk 0:02:56]}  f5 {[%clk 0:01:31]} 25. d6 {[%clk 0:02:52]}  f4 {[%clk 0:01:29]} 26. Qd5+ {[%clk 0:02:51]}  Kh7 {[%clk 0:01:29]} 27. Bb6 {[%clk 0:02:49]}  f3+ {[%clk 0:01:25]} 28. Kh2 {[%clk 0:02:47]}  Rf4 {[%clk 0:00:52]} 29. Rg1 {[%clk 0:02:16]}  Raf8 {[%clk 0:00:35]} 30. b5 {[%clk 0:02:07]}  R8f5 {[%clk 0:00:34]} 31. bxa6 {[%clk 0:02:04]}  Rh5 {[%clk 0:00:32]} 32. Rg2 {[%clk 0:01:25]}  Rfxh4+ {[%clk 0:00:17]} 33. gxh4 {[%clk 0:01:21]}  Rxh4+ {[%clk 0:00:17]} 34. Kg1 {[%clk 0:01:20]}  Qh3 {[%clk 0:00:12]} 35. Kf1 {[%clk 0:01:19]}  fxg2+ {[%clk 0:00:02]} 36. Qxg2 {[%clk 0:01:16]}  Qd3+ {[%clk 0:00:02]} 37. Kg1 {[%clk 0:01:16]}  Qxb1+ {[%clk 0:00:00]} 38. Qf1 {[%clk 0:01:17]} 1-0

[Event "January 9 Late 2024"]
[Site "https://www.chess.com"]
[Date "2024.01.09"]
[Round "3"]
[White "Naroditsky, Daniel"]
[Black "Kozak, Adam"]
[Result "1/2-1/2"]
[Board "3"]
[TimeControl "180+1"]
[WhiteFideId "2026961"]
[BlackFideId "753246"]
[WhiteElo "3155"]
[BlackElo "2881"]
[WhiteTeam "USA"]
[BlackTeam "HUN"]
[WhiteClock "0:00:04"]
[BlackClock "0:00:03"]

1. e4 {[%clk 0:03:00]}  e5 {[%clk 0:02:59]} 2. Nf3 {[%clk 0:03:01]}  Nc6 {[%clk 0:02:59]} 3. Nc3 {[%clk 0:03:00]}  Nf6 {[%clk 0:02:59]} 4. g3 {[%clk 0:03:01]}  h6 {[%clk 0:02:58]} 5. Bg2 {[%clk 0:03:01]}  Bc5 {[%clk 0:02:58]} 6. d3 {[%clk 0:03:01]}  a5 {[%clk 0:02:57]} 7. O-O {[%clk 0:03:01]}  d6 {[%clk 0:02:57]} 8. h3 {[%clk 0:03:01]}  O-O {[%clk 0:02:57]} 9. Be3 {[%clk 0:03:01]}  a4 {[%clk 0:02:55]} 10. a3 {[%clk 0:03:00]}  Qe7 {[%clk 0:02:51]} 11. Re1 {[%clk 0:02:51]}  Bxe3 {[%clk 0:02:50]} 12. fxe3 {[%clk 0:02:47]}  Nd8 {[%clk 0:02:50]} 13. Nh4 {[%clk 0:02:47]}  g6 {[%clk 0:02:47]} 14. Rf1 {[%clk 0:02:46]}  c6 {[%clk 0:02:41]} 15. Qf3 {[%clk 0:02:45]}  Nh5 {[%clk 0:02:38]} 16. Nf5 {[%clk 0:02:38]}  Bxf5 {[%clk 0:02:30]} 17. exf5 {[%clk 0:02:38]}  d5 {[%clk 0:02:27]} 18. f6 {[%clk 0:02:33]}  Qc7 {[%clk 0:02:08]} 19. Ne2 {[%clk 0:02:09]}  Qb6 {[%clk 0:01:53]} 20. Kh1 {[%clk 0:01:50]}  Qxb2 {[%clk 0:01:45]} 21. g4 {[%clk 0:01:40]}  Nxf6 {[%clk 0:01:33]} 22. Qxf6 {[%clk 0:01:40]}  Qxc2 {[%clk 0:01:33]} 23. Ng3 {[%clk 0:01:29]}  Qxd3 {[%clk 0:01:27]} 24. Qxe5 {[%clk 0:01:10]}  Ne6 {[%clk 0:01:23]} 25. Rfd1 {[%clk 0:01:00]}  Qc2 {[%clk 0:01:13]} 26. Rdc1 {[%clk 0:00:59]}  Qd3 {[%clk 0:01:12]} 27. Rd1 {[%clk 0:00:41]}  Qc2 {[%clk 0:01:02]} 28. h4 {[%clk 0:00:41]}  Rae8 {[%clk 0:00:58]} 29. Qf6 {[%clk 0:00:42]}  Ng7 {[%clk 0:00:52]} 30. Qf4 {[%clk 0:00:42]}  Qc3 {[%clk 0:00:40]} 31. e4 {[%clk 0:00:37]}  Ne6 {[%clk 0:00:37]} 32. Qf2 {[%clk 0:00:37]}  d4 {[%clk 0:00:37]} 33. Ne2 {[%clk 0:00:38]}  Qc5 {[%clk 0:00:35]} 34. Nc1 {[%clk 0:00:31]}  Qe7 {[%clk 0:00:33]} 35. Nd3 {[%clk 0:00:30]}  c5 {[%clk 0:00:34]} 36. Ne5 {[%clk 0:00:26]}  Qc7 {[%clk 0:00:28]} 37. Qf6 {[%clk 0:00:20]}  Ng7 {[%clk 0:00:27]} 38. Nd3 {[%clk 0:00:17]}  Re6 {[%clk 0:00:19]} 39. Qf2 {[%clk 0:00:15]}  b6 {[%clk 0:00:19]} 40. g5 {[%clk 0:00:12]}  hxg5 {[%clk 0:00:18]} 41. hxg5 {[%clk 0:00:13]}  Nh5 {[%clk 0:00:17]} 42. Bf3 {[%clk 0:00:13]}  Ng3+ {[%clk 0:00:17]} 43. Kg2 {[%clk 0:00:14]}  Nxe4 {[%clk 0:00:18]} 44. Qh4 {[%clk 0:00:14]}  Qe7 {[%clk 0:00:16]} 45. Nf4 {[%clk 0:00:10]}  Qxg5+ {[%clk 0:00:03]} 46. Qxg5 {[%clk 0:00:11]}  Nxg5 {[%clk 0:00:04]} 47. Nxe6 {[%clk 0:00:12]}  Nxe6 {[%clk 0:00:05]} 48. Rab1 {[%clk 0:00:12]}  Rb8 {[%clk 0:00:04]} 49. Bc6 {[%clk 0:00:08]}  Kf8 {[%clk 0:00:04]} 50. Bxa4 {[%clk 0:00:08]}  Ke7 {[%clk 0:00:05]} 51. Bb3 {[%clk 0:00:08]}  Kd6 {[%clk 0:00:05]} 52. Bxe6 {[%clk 0:00:05]}  fxe6 {[%clk 0:00:06]} 53. a4 {[%clk 0:00:06]}  Kd5 {[%clk 0:00:06]} 54. a5 {[%clk 0:00:06]}  b5 {[%clk 0:00:06]} 55. a6 {[%clk 0:00:06]}  b4 {[%clk 0:00:06]} 56. Kf3 {[%clk 0:00:03]}  Ra8 {[%clk 0:00:06]} 57. Ra1 {[%clk 0:00:03]}  Kc6 {[%clk 0:00:06]} 58. Rdc1 {[%clk 0:00:03]}  Kb5 {[%clk 0:00:06]} 59. a7 {[%clk 0:00:04]}  c4 {[%clk 0:00:04]} 60. Ke4 {[%clk 0:00:04]}  e5 {[%clk 0:00:04]} 61. Kxe5 {[%clk 0:00:04]}  d3 {[%clk 0:00:05]} 62. Rg1 {[%clk 0:00:03]}  c3 {[%clk 0:00:04]} 63. Kd4 {[%clk 0:00:04]}  d2 {[%clk 0:00:04]} 64. Rg5+ {[%clk 0:00:04]}  Kb6 {[%clk 0:00:05]} 65. Rxg6+ {[%clk 0:00:04]}  Kb5 {[%clk 0:00:05]} 66. Rg5+ {[%clk 0:00:05]}  Kb6 {[%clk 0:00:06]} 67. Kd3 {[%clk 0:00:04]}  Rxa7 {[%clk 0:00:04]} 68. Rg6+ {[%clk 0:00:05]}  Kb5 {[%clk 0:00:04]} 69. Rg5+ {[%clk 0:00:06]}  Kb6 {[%clk 0:00:04]} 70. Rh1 {[%clk 0:00:06]}  Rd7+ {[%clk 0:00:04]} 71. Kc2 {[%clk 0:00:04]}  b3+ {[%clk 0:00:04]} 72. Kxc3 {[%clk 0:00:03]}  d1=Q {[%clk 0:00:05]} 73. Rxd1 {[%clk 0:00:03]}  Rxd1 {[%clk 0:00:05]} 74. Kxb3 {[%clk 0:00:04]}  Rd6 {[%clk 0:00:03]} 75. Kc4 {[%clk 0:00:04]} 1/2-1/2

[Event "January 9 Late 2024"]
[Site "https://www.chess.com"]
[Date "2024.01.09"]
[Round "3"]
[White "Dubov, Daniil"]
[Black "Pakleza, Zbigniew"]
[Result "1-0"]
[Board "4"]
[TimeControl "180+1"]
[WhiteFideId "24126055"]
[BlackFideId "1119290"]
[WhiteElo "3117"]
[BlackElo "2876"]
[WhiteTeam "RUS"]
[BlackTeam "POL"]
[WhiteClock "0:01:35"]
[BlackClock "0:00:24"]

1. d4 {[%clk 0:03:00]}  d5 {[%clk 0:02:57]} 2. Bf4 {[%clk 0:03:01]}  Nf6 {[%clk 0:02:54]} 3. e3 {[%clk 0:03:00]}  c5 {[%clk 0:02:54]} 4. Nd2 {[%clk 0:02:58]}  Nc6 {[%clk 0:02:53]} 5. c3 {[%clk 0:02:55]}  e6 {[%clk 0:02:53]} 6. Ngf3 {[%clk 0:02:53]}  Bd6 {[%clk 0:02:52]} 7. Bg3 {[%clk 0:02:52]}  O-O {[%clk 0:02:50]} 8. Bb5 {[%clk 0:02:52]}  Ne7 {[%clk 0:02:19]} 9. Bd3 {[%clk 0:02:51]}  Nf5 {[%clk 0:02:13]} 10. Bxd6 {[%clk 0:02:45]}  Qxd6 {[%clk 0:02:12]} 11. O-O {[%clk 0:02:43]}  Qb6 {[%clk 0:02:05]} 12. Qb1 {[%clk 0:02:35]}  Ne7 {[%clk 0:01:52]} 13. Ne5 {[%clk 0:02:31]}  h6 {[%clk 0:01:44]} 14. f4 {[%clk 0:02:18]}  Bd7 {[%clk 0:01:41]} 15. a4 {[%clk 0:02:15]}  a6 {[%clk 0:01:26]} 16. Kh1 {[%clk 0:02:13]}  Qc7 {[%clk 0:01:20]} 17. g4 {[%clk 0:02:12]}  Ne8 {[%clk 0:00:56]} 18. g5 {[%clk 0:02:01]}  hxg5 {[%clk 0:00:37]} 19. fxg5 {[%clk 0:01:59]}  Nc6 {[%clk 0:00:32]} 20. Bh7+ {[%clk 0:01:46]}  Kh8 {[%clk 0:00:24]} 21. Rxf7 {[%clk 0:01:35]} 1-0